[Event "Slovakia Open 2022"]
[Site "Bratislava"]
[Date "2022.09.30"]
[Round "2.33"]
[White "Matejka, Simon"]
[Black "Kukan, Michal"]
[Result "0-1"]
[ECO "C29"]
[WhiteElo "1422"]
[BlackElo "1767"]
[Annotator "NA RC COMBH"]
[PlyCount "134"]
[EventDate "2022.09.30"]
[EventCountry "SVK"]
[SourceTitle "playchess.com"]
[Source "ChessBase"]
[SourceQuality "1"]
[TimeControl "2700+10"]

1. e4 {[%emt 0:00:09]} e5 {[%emt 0:00:03]} 2. Nc3 {[%emt 0:00:03]} Nf6 {[%emt 0:00:04]} 3. f4 {[%emt 0:00:07]} Nc6 {[%emt 0:00:08]} 4. fxe5 {[%emt 0:00:18]} Nxe5 {[%emt 0:00:05]} 5. d4 {[%emt 0:00:08]} Ng6 {[%emt 0:00:20]} 6. Nf3 {[%emt 0:00:29]} Bb4 {[%emt 0:00:16]} 7. Bd3 {[%emt 0:00:13]} O-O {[%emt 0:00:10]} 8. O-O {[%emt 0:00:07]} b6 {[%emt 0:00:35]} 9. Bg5 {[%emt 0:00:28]} Be7 {[%emt 0:00:30]} 10. e5 {[%emt 0:00:42]} Ne8 {[%emt 0:01:31]} 11. Bxe7 {[%emt 0:00:50]} Qxe7 {[%emt 0:00:33]} 12. Nd5 {[%emt 0:00:28]} Qd8 {[%emt 0:00:39]} 13. Qd2 {[%emt 0:00:49]} Bb7 {[%emt 0:00:35]} 14. Ne3 {[%emt 0:01:13]} d6 {[%emt 0:00:26]} 15. Rad1 {[%emt 0:01:37]} dxe5 {[%emt 0:02:30]} 16. dxe5 {[%emt 0:01:27]} Qe7 {[%emt 0:01:28]} 17. Nf5 {[%emt 0:00:44]} Qc5+ {[%emt 0:00:47]} 18. Kh1 {[%emt 0:01:34]} Nxe5 {[%emt 0:03:48]} 19. Nxe5 {[%emt 0:00:19]} Qxe5 {[%emt 0:00:15]} 20. Qg5 {[%emt 0:00:44]} Kh8 {[%emt 0:02:44]} 21. Qh4 {[%emt 0:03:36]} Qf6 {[%emt 0:01:21]} 22. Qh3 {[%emt 0:00:35]} Bc8 {[%emt 0:02:42]} 23. Qf3 {[%emt 0:01:14]} Rb8 {[%emt 0:01:03]} 24. Qe4 {[%emt 0:00:36]} Qg6 {[%emt 0:03:16]} 25. Qe7 {[%emt 0:02:14]} Kg8 {[%emt 0:05:13]} 26. Qe4 {[%emt 0:04:10]} Bxf5 {[%emt 0:00:41]} 27. Qxf5 {[%emt 0:00:30]} Qxf5 {[%emt 0:00:10]} 28. Rxf5 {[%emt 0:00:18]} Nd6 {[%emt 0:00:07]} 29. Rh5 {[%emt 0:00:37]} g6 {[%emt 0:00:07]} 30. Re5 {[%emt 0:00:11]} Rfe8 {[%emt 0:00:06]} 31. Rde1 {[%emt 0:00:56]} Kf8 {[%emt 0:00:27]} 32. Kg1 {[%emt 0:00:20]} Rxe5 {[%emt 0:00:04]} 33. Rxe5 {[%emt 0:00:02]} Re8 {[%emt 0:00:04]} 34. Rd5 {[%emt 0:00:48]} f6 {[%emt 0:01:26]} 35. Kf2 {[%emt 0:00:47]} Ke7 {[%emt 0:00:19]} 36. c4 {[%emt 0:00:43]} Ke6 {[%emt 0:00:31]} 37. Rd4 {[%emt 0:00:46]} Ke5 {[%emt 0:00:28]} 38. Rh4 {[%emt 0:00:20]} Re7 {[%emt 0:00:11]} 39. b4 {[%emt 0:00:30]} Rd7 {[%emt 0:00:56]} 40. Ke2 {[%emt 0:01:49]} c5 {[%emt 0:01:53]} 41. b5 {[%emt 0:02:38]} f5 {[%emt 0:01:38]} 42. Ke3 {[%emt 0:01:10]} Ne8 {[%emt 0:00:09]} 43. g3 {[%emt 0:00:41]} Nf6 {[%emt 0:00:28]} 44. h3 {[%emt 0:00:35]} Nh5 {[%emt 0:00:48]} 45. g4 {[%emt 0:01:10]} f4+ {[%emt 0:00:07]} 46. Kd2 {[%emt 0:00:58]} Ng3 {[%emt 0:00:39]} 47. g5 {[%emt 0:00:27]} Ne4+ {[%emt 0:00:17]} 48. Ke2 {[%emt 0:00:42]} Nxg5 {[%emt 0:00:17]} 49. Rg4 {[%emt 0:00:36]} Nxh3 {[%emt 0:01:21]} 50. Rh4 {[%emt 0:00:50]} Ng5 {[%emt 0:00:23]} 51. Rg4 {[%emt 0:00:09]} f3+ {[%emt 0:00:09]} 52. Kd2 {[%emt 0:00:48]} h6 {[%emt 0:00:47]} 53. Ke3 {[%emt 0:00:19]} Rd4 {[%emt 0:00:25]} 54. Rg1 {[%emt 0:00:42]} f2 {[%emt 0:00:34]} 55. Rf1 {[%emt 0:00:07]} Nh3 {[%emt 0:00:51]} 56. Rh1 {[%emt 0:00:35]} g5 {[%emt 0:00:12]} 57. Be2 {[%emt 0:00:37]} Re4+ {[%emt 0:00:25]} 58. Kd3 {[%emt 0:00:15]} g4 {[%emt 0:00:22]} 59. Kd2 {[%emt 0:00:19]} Kf4 {[%emt 0:00:18]} 60. a4 {[%emt 0:00:12]} Rd4+ {[%emt 0:00:30]} 61. Kc3 {[%emt 0:00:48]} h5 {[%emt 0:00:15]} 62. a5 {[%emt 0:00:20]} Ke3 {[%emt 0:00:14]} 63. Bf1 {[%emt 0:00:10]} Nf4 {[%emt 0:00:09]} 64. axb6 {[%emt 0:00:11]} axb6 {[%emt 0:00:10]} 65. Rh4 {[%emt 0:00:22]} Rd1 {[%emt 0:00:00]} 66. Rh1 {[%emt 0:00:11]} Rxf1 {[%emt 0:00:13]} 67. Rxf1 {[%emt 0:00:03]} Ke2 {[%emt 0:00:10]} 0-1

[Event "Slovakia Open 2022"]
[Site "Bratislava"]
[Date "2022.09.30"]
[Round "2.34"]
[White "Tomcikova, Zuzana"]
[Black "Kluckova, Alzbeta"]
[Result "1-0"]
[ECO "C54"]
[WhiteElo "1796"]
[BlackElo "1097"]
[Annotator "NA RC COMBH"]
[PlyCount "96"]
[EventDate "2022.09.30"]
[EventCountry "SVK"]
[SourceTitle "playchess.com"]
[Source "ChessBase"]
[SourceQuality "1"]
[TimeControl "2700+10"]

1. e4 {[%emt 0:00:06]} e5 {[%emt 0:00:03]} 2. Nf3 {[%emt 0:00:02]} Nc6 {[%emt 0:00:05]} 3. Bc4 {[%emt 0:00:03]} Bc5 {[%emt 0:00:02]} 4. c3 {[%emt 0:00:06]} Nf6 {[%emt 0:00:18]} 5. d3 {[%emt 0:00:02]} O-O {[%emt 0:01:48]} 6. O-O {[%emt 0:00:06]} d5 {[%emt 0:00:14]} 7. exd5 {[%emt 0:01:28]} Nxd5 {[%emt 0:00:13]} 8. Re1 {[%emt 0:00:28]} f6 {[%emt 0:01:59]} 9. b4 {[%emt 0:03:20]} Bb6 {[%emt 0:00:47]} 10. Qb3 {[%emt 0:02:11]} Nce7 {[%emt 0:00:43]} 11. Nbd2 {[%emt 0:10:24]} c6 {[%emt 0:00:47]} 12. Ne4 {[%emt 0:00:50]} Bc7 {[%emt 0:01:37]} 13. a4 {[%emt 0:01:00]} b6 {[%emt 0:02:14]} 14. b5 {[%emt 0:01:18]} c5 {[%emt 0:00:20]} 15. d4 {[%emt 0:03:11]} Bb7 {[%emt 0:01:26]} 16. dxc5 {[%emt 0:00:26]} bxc5 {[%emt 0:02:26]} 17. Nxc5 {[%emt 0:00:35]} Qc8 {[%emt 0:00:05]} 18. Nxb7 {[%emt 0:00:53]} Qxb7 {[%emt 0:00:04]} 19. Ba3 {[%emt 0:00:28]} Kh8 {[%emt 0:01:22]} 20. Bxd5 {[%emt 0:00:28]} Qxd5 {[%emt 0:01:30]} 21. Qxd5 {[%emt 0:00:04]} Nxd5 {[%emt 0:00:04]} 22. Bxf8 {[%emt 0:00:03]} Rxf8 {[%emt 0:00:03]} 23. c4 {[%emt 0:01:21]} Nb4 {[%emt 0:05:47]} 24. Rad1 {[%emt 0:01:51]} Bb6 {[%emt 0:00:49]} 25. Re2 {[%emt 0:01:37]} h6 {[%emt 0:01:00]} 26. Rb2 {[%emt 0:05:07]} Ba5 {[%emt 0:00:24]} 27. c5 {[%emt 0:00:22]} e4 {[%emt 0:02:30]} 28. Nh4 {[%emt 0:00:08]} Kh7 {[%emt 0:00:15]} 29. Rd7 {[%emt 0:00:44]} Nd3 {[%emt 0:00:47]} 30. Rb1 {[%emt 0:00:02]} Nxc5 {[%emt 0:00:37]} 31. Rxa7 {[%emt 0:01:13]} Bb6 {[%emt 0:00:47]} 32. Re7 {[%emt 0:00:10]} Nxa4 {[%emt 0:00:18]} 33. Nf5 {[%emt 0:00:27]} Rg8 {[%emt 0:01:49]} 34. Rd1 {[%emt 0:01:16]} Kg6 {[%emt 0:02:11]} 35. g4 {[%emt 0:00:05]} Nc3 {[%emt 0:00:57]} 36. Rdd7 {[%emt 0:00:22]} Kg5 {[%emt 0:01:11]} 37. Rxg7+ {[%emt 0:00:12]} Rxg7 {[%emt 0:00:03]} 38. Rxg7+ {[%emt 0:00:02]} Kf4 {[%emt 0:00:08]} 39. Nxh6 {[%emt 0:01:03]} Kf3 {[%emt 0:00:12]} 40. Rf7 {[%emt 0:00:27]} Bxf2+ {[%emt 0:01:39]} 41. Kh1 {[%emt 0:02:01]} Nxb5 {[%emt 0:01:51]} 42. Rxf6+ {[%emt 0:00:11]} Ke2 {[%emt 0:00:20]} 43. Re6 {[%emt 0:01:01]} e3 {[%emt 0:00:06]} 44. g5 {[%emt 0:00:23]} Nd4 {[%emt 0:00:02]} 45. Re8 {[%emt 0:00:09]} Nf3 {[%emt 0:05:10]} 46. g6 {[%emt 0:00:05]} Nd2 {[%emt 0:01:27]} 47. g7 {[%emt 0:00:12]} Kd3 {[%emt 0:00:04]} 48. g8=Q {[%emt 0:00:13]} Ne4 {[%emt 0:00:02]} 1-0

[Event "Slovakia Open 2022"]
[Site "Bratislava"]
[Date "2022.09.30"]
[Round "2.35"]
[White "Nedoba, Jakub"]
[Black "Slivka, Vasil"]
[Result "0-1"]
[ECO "B07"]
[WhiteElo "1160"]
[BlackElo "1569"]
[Annotator "NA RC COMBH"]
[PlyCount "98"]
[EventDate "2022.09.30"]
[EventCountry "SVK"]
[SourceTitle "playchess.com"]
[Source "ChessBase"]
[SourceQuality "1"]
[TimeControl "2700+10"]

1. d4 {[%emt 0:00:04]} Nf6 {[%emt 0:00:02]} 2. Bf4 {[%emt 0:00:03]} g6 {[%emt 0:00:04]} 3. Nc3 {[%emt 0:00:10]} d6 {[%emt 0:00:06]} 4. e4 {[%emt 0:00:16]} Bg7 {[%emt 0:00:26]} 5. Qd2 {[%emt 0:00:08]} b6 {[%emt 0:00:47]} 6. O-O-O {[%emt 0:00:11]} Bb7 {[%emt 0:00:03]} 7. Re1 {[%emt 0:00:40]} Nbd7 {[%emt 0:01:18]} 8. Bh6 {[%emt 0:00:15]} O-O {[%emt 0:00:21]} 9. Bxg7 {[%emt 0:00:27]} Kxg7 {[%emt 0:00:01]} 10. h4 {[%emt 0:00:17]} h5 {[%emt 0:00:33]} 11. f3 {[%emt 0:00:07]} e5 {[%emt 0:01:28]} 12. d5 {[%emt 0:00:50]} a5 {[%emt 0:00:20]} 13. Be2 {[%emt 0:00:11]} Nc5 {[%emt 0:00:09]} 14. g4 {[%emt 0:00:53]} Ba6 {[%emt 0:01:11]} 15. gxh5 {[%emt 0:01:51]} Nxh5 {[%emt 0:00:05]} 16. Bxa6 {[%emt 0:02:16]} Nxa6 {[%emt 0:00:50]} 17. Nge2 {[%emt 0:00:30]} Rh8 {[%emt 0:01:44]} 18. Reg1 {[%emt 0:00:11]} Nc5 {[%emt 0:00:53]} 19. Ng3 {[%emt 0:00:36]} Nf4 {[%emt 0:00:37]} 20. h5 {[%emt 0:00:34]} g5 {[%emt 0:03:55]} 21. Nce2 {[%emt 0:00:46]} f6 {[%emt 0:01:46]} 22. h6+ {[%emt 0:01:54]} Kf7 {[%emt 0:00:54]} 23. Nf5 {[%emt 0:01:46]} Rh7 {[%emt 0:00:51]} 24. Nxf4 {[%emt 0:00:34]} exf4 {[%emt 0:00:04]} 25. Qh2 {[%emt 0:00:27]} Qg8 {[%emt 0:00:35]} 26. Qh5+ {[%emt 0:04:30]} Qg6 {[%emt 0:00:06]} 27. Qxg6+ {[%emt 0:00:39]} Kxg6 {[%emt 0:00:02]} 28. Kd2 {[%emt 0:00:13]} Nd7 {[%emt 0:00:13]} 29. Rh2 {[%emt 0:00:30]} Ne5 {[%emt 0:00:09]} 30. Ke2 {[%emt 0:00:19]} a4 {[%emt 0:00:44]} 31. b3 {[%emt 0:00:58]} axb3 {[%emt 0:00:04]} 32. axb3 {[%emt 0:00:17]} Ra2 {[%emt 0:00:20]} 33. Rc1 {[%emt 0:00:27]} b5 {[%emt 0:01:32]} 34. Rh3 {[%emt 0:04:47]} b4 {[%emt 0:01:23]} 35. Kd2 {[%emt 0:00:30]} Ra5 {[%emt 0:00:49]} 36. Rg1 {[%emt 0:00:28]} Rc5 {[%emt 0:00:16]} 37. Rc1 {[%emt 0:00:46]} Rc3 {[%emt 0:00:07]} 38. Rf1 {[%emt 0:00:28]} Rh8 {[%emt 0:02:19]} 39. Kc1 {[%emt 0:02:17]} Kh7 {[%emt 0:00:26]} 40. Ng7 {[%emt 0:02:50]} Ra8 {[%emt 0:05:46]} 41. Ne6 {[%emt 0:00:37]} Ra1+ {[%emt 0:00:53]} 42. Kd2 {[%emt 0:00:53]} Rxf1 {[%emt 0:00:02]} 43. Nf8+ {[%emt 0:00:07]} Kh8 {[%emt 0:00:04]} 44. h7 {[%emt 0:00:47]} Rfxf3 {[%emt 0:00:51]} 45. Rh6 {[%emt 0:00:26]} Rh3 {[%emt 0:00:06]} 46. Rxf6 {[%emt 0:00:07]} Rh2+ {[%emt 0:03:59]} 47. Ke1 {[%emt 0:01:05]} Rcxc2 {[%emt 0:00:10]} 48. Kd1 {[%emt 0:00:07]} Rhd2+ {[%emt 0:00:07]} 49. Ke1 {[%emt 0:13:15]} Nd3+ {[%emt 0:13:49]} 0-1

[Event "Slovakia Open 2022"]
[Site "Bratislava"]
[Date "2022.09.30"]
[Round "2.36"]
[White "Babula, Matej"]
[Black "Ruderfer, Mark B"]
[Result "1-0"]
[ECO "B13"]
[WhiteElo "1864"]
[BlackElo "2236"]
[Annotator "TA"]
[PlyCount "56"]
[EventDate "2022.09.30"]
[EventCountry "SVK"]
[SourceTitle "playchess.com"]
[Source "ChessBase"]
[SourceQuality "1"]
[TimeControl "2700+10"]

{[%evp 9,56,8,12,5,16,0,20,8,28,22,17,17,64,50,74,52,55,58,52,47,58,16,63,30,85,85,102,102,93,99,112,111,112,112,121,101,109,102,120,114,113,89,102,56,79,35,61,0,8]} 1. e4 {[%emt 0:00:03]} c6 {[%emt 0:00:03]} 2. d4 {[%emt 0:00:05]} d5 {[%emt 0:00:02]} 3. exd5 {[%emt 0:00:04]} cxd5 {[%emt 0:00:02]} 4. Bd3 {[%emt 0:00:03]} Nf6 {[%emt 0:00:03]} 5. h3 {[%emt 0:00:02]} g6 {[%emt 0:00:02]} 6. Nf3 {[%emt 0:00:22] B13: Caro-Kann: Exchange Variation and Panov-Botvinnik Attack.} Bf5 {[%emt 0:00:17]} 7. Be2 {[%emt 0:00:05]} Bg7 {[%emt 0:00:14]} 8. c3 {[%emt 0:00:20] [#]} e6 $146 {[%emt 0:00:34]} ({Predecessor:} 8... O-O 9. O-O Nc6 10. Re1 Rc8 11. Be3 Ne4 12. Nbd2 Re8 13. Qb3 Na5 14. Qa3 a6 {1-0 (35) Obgolts,E (2404)-Odegov,A (2298) Cheliabinsk 2021}) 9. O-O {[%emt 0:00:19]} O-O {[%emt 0:00:05]} 10. Bf4 {[%emt 0:00:44]} Qb6 {[%emt 0:00:03]} (10... Nc6 $11 {feels stronger.}) 11. Qb3 {[%emt 0:00:49]} Nc6 {[%emt 0:03:48]} 12. Nbd2 {[%emt 0:02:29]} h6 {[%emt 0:08:42]} 13. g4 {[%emt 0:06:40] [#] aiming for Qxb6.} Be4 {[%emt 0:04:50]} 14. Qxb6 {[%emt 0:00:28]} axb6 {[%emt 0:00:03]} 15. Nxe4 {[%emt 0:01:22]} Nxe4 {[%emt 0:00:23]} (15... dxe4 $11 16. Nd2 Nd5) 16. Bc7 {[%emt 0:01:14]} Na5 {[%emt 0:02:36]} (16... f5 $11 {remains equal.}) 17. Bxb6 $16 {[%emt 0:01:10]} Nc4 {[%emt 0:00:02]} 18. Bxc4 {[%emt 0:00:06]} dxc4 {[%emt 0:00:03]} 19. Bc7 {[%emt 0:03:53]} b5 {[%emt 0:02:03]} 20. a3 {[%emt 0:01:34]} Ra7 {[%emt 0:02:21]} 21. Bh2 {[%emt 0:00:10]} Re8 {[%emt 0:01:48]} 22. Rad1 {[%emt 0:03:28]} Nf6 {[%emt 0:00:13]} 23. Rfe1 {[%emt 0:00:10]} Nd5 {[%emt 0:00:28]} 24. h4 {[%emt 0:02:20]} Rea8 {[%emt 0:01:11]} 25. Ne5 {[%emt 0:01:41]} Ra6 {[%emt 0:01:22]} 26. f3 {[%emt 0:02:15]} (26. Nd7 $16) 26... R8a7 {[%emt 0:00:12]} 27. Kf2 {[%emt 0:01:58]} (27. h5 $5 {[%cal Rh5g6]}) 27... Bf8 {[%emt 0:00:01]} 28. f4 {[%emt 0:01:12]} (28. h5 $14) 28... Kh7 {[%emt 0:11:06][%mdl 32768] Weighted Error Value: White=0.15 (very precise) /Black=0.16 (very precise) . Sensor Board Error (Ke4/e5)?} 1-0

[Event "Slovakia Open 2022"]
[Site "Bratislava"]
[Date "2022.09.30"]
[Round "2.37"]
[White "Certik Peter"]
[Black "Migalko, Dmitriy"]
[Result "0-1"]
[ECO "B30"]
[WhiteElo "1000"]
[BlackElo "1528"]
[Annotator "NA RC COMBH"]
[PlyCount "40"]
[EventDate "2022.09.30"]
[EventCountry "SVK"]
[SourceTitle "playchess.com"]
[Source "ChessBase"]
[SourceQuality "1"]
[TimeControl "2700+10"]

1. e4 {[%emt 0:00:05]} c5 {[%emt 0:00:02]} 2. c3 {[%emt 0:00:04]} e6 {[%emt 0:00:13]} 3. Nf3 {[%emt 0:00:19]} Nc6 {[%emt 0:00:03]} 4. Bc4 {[%emt 0:01:03]} d5 {[%emt 0:00:08]} 5. exd5 {[%emt 0:00:22]} exd5 {[%emt 0:00:04]} 6. Bb5 {[%emt 0:00:21]} Nf6 {[%emt 0:00:17]} 7. d3 {[%emt 0:00:37]} Bd6 {[%emt 0:00:47]} 8. Qe2+ {[%emt 0:00:49]} Be6 {[%emt 0:00:25]} 9. Ng5 {[%emt 0:00:33]} O-O {[%emt 0:00:18]} 10. O-O {[%emt 0:00:07]} Bg4 {[%emt 0:01:09]} 11. f3 {[%emt 0:00:12]} Re8 {[%emt 0:00:41]} 12. Qc2 {[%emt 0:00:17]} Bf5 {[%emt 0:00:26]} 13. Nd2 {[%emt 0:00:10]} c4 {[%emt 0:00:42]} 14. Bxc6 {[%emt 0:00:30]} bxc6 {[%emt 0:00:05]} 15. Qd1 {[%emt 0:00:23]} Bxd3 {[%emt 0:00:12]} 16. Re1 {[%emt 0:00:03]} Bc5+ {[%emt 0:00:18]} 17. Kh1 {[%emt 0:00:05]} Bc2 {[%emt 0:00:17]} 18. Rxe8+ {[%emt 0:00:05]} Qxe8 {[%emt 0:00:10]} 19. Qf1 {[%emt 0:00:32]} Bd3 {[%emt 0:01:18]} 20. Qf2 {[%emt 0:00:01]} Bxf2 {[%emt 0:00:02]} 0-1

[Event "Slovakia Open 2022"]
[Site "Bratislava"]
[Date "2022.09.30"]
[Round "2.38"]
[White "Pasti, Zsombor"]
[Black "Hryshko Herman"]
[Result "1-0"]
[ECO "B73"]
[WhiteElo "1884"]
[BlackElo "1000"]
[Annotator "NA COMBH"]
[PlyCount "133"]
[EventDate "2022.09.30"]
[EventCountry "SVK"]
[SourceTitle "playchess.com"]
[Source "ChessBase"]
[SourceQuality "1"]
[TimeControl "2700+10"]

1. e4 {[%emt 0:00:00]} c5 {[%emt 0:00:11]} 2. Nf3 {[%emt 0:00:03]} d6 {[%emt 0:00:10]} 3. d4 {[%emt 0:00:02]} cxd4 {[%emt 0:00:05]} 4. Nxd4 {[%emt 0:00:01]} Nf6 {[%emt 0:00:04]} 5. Nc3 {[%emt 0:00:02]} Nc6 {[%emt 0:00:41]} 6. Be2 {[%emt 0:00:14]} g6 {[%emt 0:00:16]} 7. Be3 {[%emt 0:00:02]} Bg7 {[%emt 0:00:44]} 8. O-O {[%emt 0:00:06]} O-O {[%emt 0:00:06]} 9. h3 {[%emt 0:00:05]} Nd7 {[%emt 0:03:33]} 10. Qd2 {[%emt 0:00:15]} Nxd4 {[%emt 0:02:35]} 11. Bxd4 {[%emt 0:00:02]} f6 {[%emt 0:02:04]} 12. Nd5 {[%emt 0:00:12]} e6 {[%emt 0:01:03]} 13. Nf4 {[%emt 0:00:12]} Bh6 {[%emt 0:02:07]} 14. Bc4 {[%emt 0:00:03]} Bxf4 {[%emt 0:00:56]} 15. Bxe6+ {[%emt 0:00:04]} Kg7 {[%emt 0:00:42]} 16. Qxf4 {[%emt 0:00:04]} Qe7 {[%emt 0:03:53]} 17. Bd5 {[%emt 0:00:11]} Ne5 {[%emt 0:05:07]} 18. Qe3 {[%emt 0:00:02]} Nc6 {[%emt 0:02:15]} 19. Bc3 {[%emt 0:00:03]} Be6 {[%emt 0:00:57]} 20. Rad1 {[%emt 0:00:08]} Rfe8 {[%emt 0:01:02]} 21. Bxe6 {[%emt 0:00:14]} Qxe6 {[%emt 0:00:07]} 22. Rd3 {[%emt 0:00:06]} Rad8 {[%emt 0:00:42]} 23. Rfd1 {[%emt 0:00:02]} b6 {[%emt 0:01:00]} 24. Qf4 {[%emt 0:00:07]} Ne5 {[%emt 0:01:09]} 25. Bxe5 {[%emt 0:00:03]} fxe5 {[%emt 0:00:07]} 26. Qd2 {[%emt 0:00:03]} Qxa2 {[%emt 0:03:52]} 27. Rxd6 {[%emt 0:00:02]} Rxd6 {[%emt 0:01:12]} 28. Qxd6 {[%emt 0:00:02]} Qf7 {[%emt 0:00:17]} 29. Qc6 {[%emt 0:00:12]} Re6 {[%emt 0:02:33]} 30. Qb5 {[%emt 0:00:25]} Re7 {[%emt 0:02:03]} 31. Rd5 {[%emt 0:00:08]} Qf6 {[%emt 0:00:41]} 32. Kf1 {[%emt 0:00:21]} Rf7 {[%emt 0:00:08]} 33. f3 {[%emt 0:00:02]} Qf4 {[%emt 0:00:19]} 34. Qd3 {[%emt 0:00:32]} a6 {[%emt 0:00:52]} 35. Rd7 {[%emt 0:00:12]} Qc1+ {[%emt 0:01:26]} 36. Kf2 {[%emt 0:00:18]} Qxb2 {[%emt 0:00:33]} 37. Rxf7+ {[%emt 0:00:08]} Kxf7 {[%emt 0:00:02]} 38. Kg3 {[%emt 0:00:14]} a5 {[%emt 0:00:15]} 39. Kg4 {[%emt 0:00:32]} h5+ {[%emt 0:00:12]} 40. Kh4 {[%emt 0:00:39]} a4 {[%emt 0:00:42]} 41. Qd7+ {[%emt 0:00:01]} Kf6 {[%emt 0:00:13]} 42. Qxa4 {[%emt 0:00:07]} Qc3 {[%emt 0:01:11]} 43. Kg3 {[%emt 0:00:38]} Qc7 {[%emt 0:00:40]} 44. Qb3 {[%emt 0:00:12]} g5 {[%emt 0:00:31]} 45. Qb2 {[%emt 0:00:04]} h4+ {[%emt 0:00:19]} 46. Kh2 {[%emt 0:00:02]} Qc5 {[%emt 0:00:09]} 47. Qc1 {[%emt 0:00:25]} b5 {[%emt 0:00:06]} 48. Qd2 {[%emt 0:00:07]} Qb6 {[%emt 0:00:45]} 49. Qb4 {[%emt 0:00:13]} Kf7 {[%emt 0:00:24]} 50. c4 {[%emt 0:00:31]} Qc7 {[%emt 0:01:28]} 51. cxb5 {[%emt 0:00:11]} Kf6 {[%emt 0:00:08]} 52. b6 {[%emt 0:00:03]} Qb7 {[%emt 0:00:12]} 53. Qd6+ {[%emt 0:00:02]} Kf7 {[%emt 0:00:08]} 54. Qc7+ {[%emt 0:00:02]} Qxc7 {[%emt 0:00:17]} 55. bxc7 {[%emt 0:00:04]} Ke6 {[%emt 0:00:17]} 56. c8=Q+ {[%emt 0:00:04]} Kd6 {[%emt 0:00:11]} 57. Qf5 {[%emt 0:00:04]} g4 {[%emt 0:00:00]} 58. hxg4 {[%emt 0:00:03]} h3 {[%emt 0:00:01]} 59. g5 {[%emt 0:00:02]} Ke7 {[%emt 0:00:02]} 60. g6 {[%emt 0:00:02]} Ke8 {[%emt 0:00:07]} 61. g7 {[%emt 0:00:03]} Ke7 {[%emt 0:00:09]} 62. g8=Q {[%emt 0:00:03]} Kd6 {[%emt 0:00:08]} 63. Qfe6+ {[%emt 0:00:03]} Kc5 {[%emt 0:00:01]} 64. Qgc8+ {[%emt 0:00:02]} Kd4 {[%emt 0:00:06]} 65. Qd5+ {[%emt 0:00:04]} Ke3 {[%emt 0:00:01]} 66. Qc1+ {[%emt 0:00:02]} Kf2 {[%emt 0:00:25]} 67. Qdd2# {[%emt 0:00:04]} 1-0

[Event "Slovakia Open 2022"]
[Site "Bratislava"]
[Date "2022.09.30"]
[Round "3.1"]
[White "Korobov, Anton"]
[Black "Slovak, Kilian"]
[Result "1-0"]
[ECO "E70"]
[WhiteElo "2671"]
[BlackElo "2278"]
[Annotator "TA"]
[PlyCount "43"]
[EventDate "2022.09.30"]
[EventCountry "SVK"]
[SourceTitle "playchess.com"]
[Source "ChessBase"]
[SourceQuality "1"]
[TimeControl "2700+10"]

{[%evp 11,43,39,50,-8,31,4,16,28,25,27,68,57,111,96,118,103,109,121,231,195,181,180,187,182,186,170,234,243,246,247,622,614,689,617]} 1. d4 {[%emt 0:00:03]} Nf6 {[%emt 0:01:02]} 2. c4 {[%emt 0:00:02]} g6 {[%emt 0:00:04]} 3. Nc3 {[%emt 0:00:03]} Bg7 {[%emt 0:00:02]} 4. e4 {[%emt 0:00:01][%cal Be2e4,Be4e5][%mdl 32]} O-O {[%emt 0:00:03]} 5. Bg5 {[%emt 0:00:05]} d6 {[%emt 0:00:06]} 6. Qd2 {[%emt 0:00:04]} a6 {[%emt 0:02:07]} 7. f4 {[%emt 0:03:04] E70: King's Indian: Miscellaneous lines with 4 e4, including 5 Nge2 and 5 Bd3 0-0 6 Nge2.} (7. Rd1 $14) 7... c6 {[%emt 0:03:20] [#]} 8. e5 $146 {[%emt 0:01:58]} ({Predecessor:} 8. a4 a5 9. Bd3 Na6 10. Rd1 Nb4 11. Bb1 d5 12. cxd5 cxd5 13. e5 Ne8 14. Nge2 f5 {0-1 (70) Ermenkov,E (2499)-Milchev,N (2315) Sunny Beach 2007}) 8... Ne8 {[%emt 0:00:30]} 9. Nf3 {[%emt 0:00:18] The position is equal.} b5 {[%emt 0:06:23]} 10. Be2 {[%emt 0:00:46][%cal Bf1e2,Be2c4,Bc4b3][%mdl 32]} Nd7 {[%emt 0:02:02]} 11. O-O {[%emt 0:01:04]} ({Reject} 11. cxb5 $6 axb5 12. Bh4 Nb6 $11) 11... Bb7 {[%emt 0:02:49]} ({Black should play} 11... f6 $14 12. Bh4 (12. cxb5 fxg5 13. bxc6 Nb6 $15) 12... Nb6) 12. Rad1 {[%emt 0:02:46][%cal Of4f5]} bxc4 {[%emt 0:03:44]} 13. Bxc4 {[%emt 0:00:07][%cal Of4f5]} Nb6 {[%emt 0:00:04]} 14. Bb3 {[%emt 0:00:13][%cal Of4f5] White has more active pieces.} Nc7 {[%emt 0:00:26]} (14... Qd7 $16) 15. exd6 {[%emt 0:04:32]} Qxd6 {[%emt 0:00:02]} 16. Ne4 {[%emt 0:00:03] Prevents c5.} Qd8 {[%emt 0:00:18]} 17. Qb4 $36 {[%emt 0:01:21][%csl LRb6,LRe7][%mdl 2048] White has strong initiative.} Ncd5 {[%emt 0:10:32]} 18. Bxd5 {[%emt 0:00:28] [#] Hoping for Bb3.} cxd5 {[%emt 0:02:26]} (18... a5 {was necessary.} 19. Qxe7 Qxe7 20. Bxe7 cxd5) 19. Bxe7 $18 {[%emt 0:00:05]} a5 {[%emt 0:00:39]} 20. Qc5 {[%emt 0:00:42]} ({Inferior is} 20. Bxd8 axb4 21. Nf6+ Bxf6 22. Bxf6 Rxa2 $11) 20... Qd7 {[%emt 0:02:26]} (20... Qe8) 21. Ne5 {[%emt 0:01:15] Pair of Knights!} ({Not} 21. Qxb6 Qxe7 22. Nc5 Bc8 $14) 21... Qc8 {[%emt 0:04:10]} 22. Bxf8 {[%emt 0:00:33] White took control after the opening.  Weighted Error Value: White=0.13 (very precise) /Black=0.66} 1-0